bitfinex-derivatives/quotes_BTCF0:USTF0_20250704
["timestamp","ask_amount","ask_price","bid_price","bid_amount"]
[1751643459035,0.96410815,107780.0,107770.0,0.49593918]
[1751643459637,0.96410815,107780.0,107770.0,0.68143888]
[1751643459838,0.93410815,107780.0,107770.0,0.68143888]
[1751643462938,0.93410815,107780.0,107770.0,0.49593918]
[1751643463138,0.93410815,107780.0,107770.0,0.68143878]
[1751643464129,0.95410815,107780.0,107770.0,0.68143878]
[1751643464634,0.95410815,107780.0,107770.0,0.68143877]
[1751643469132,0.95410815,107780.0,107770.0,0.49593917]
[1751643469841,0.95411887,107780.0,107770.0,0.85391305]
[1751643470246,1.31209275,107780.0,107770.0,0.85391305]
[1751643470546,1.31209275,107780.0,107770.0,0.49593917]
[1751643470739,1.31209275,107780.0,107770.0,0.39973917]
[1751643470940,1.37659275,107780.0,107770.0,0.34406374]
[1751643471239,1.37659275,107780.0,107770.0,0.344064]
[1751643471442,1.37659275,107780.0,107770.0,0.32956429]
[1751643471838,1.01867784,107780.0,107770.0,0.07523972]
[1751643472443,1.01867784,107780.0,107770.0,0.05665972]
[1751643473840,1.01867784,107780.0,107770.0,0.08490227]
[1751643478147,1.52052499,107780.0,107770.0,0.12490227]
[1751643478344,1.87855784,107780.0,107770.0,0.12490227]
[1751643478544,1.87855784,107780.0,107770.0,0.23490227]
[1751643480052,1.87855784,107780.0,107770.0,0.23490251]
[1751643481654,1.87855784,107780.0,107770.0,0.26530251]
[1751643482251,0.37966239,107780.0,107770.0,0.80883496]
[1751643482446,0.86176,107780.0,107770.0,0.85909284]
[1751643482650,0.002,107780.0,107770.0,0.87767284]
[1751643482850,0.1874824,107780.0,107770.0,0.87767284]
[1751643483050,0.5074824,107780.0,107770.0,0.51963999]
[1751643484656,0.002,107780.0,107770.0,0.87767284]
[1751643484852,0.1874824,107780.0,107770.0,0.87767284]
[1751643485052,0.5174824,107780.0,107770.0,0.87767284]
[1751643486158,0.5174824,107780.0,107770.0,0.51963999]
[1751643486351,0.5174824,107780.0,107770.0,0.87767284]
[1751643486557,0.5474823,107780.0,107770.0,0.87767284]
[1751643487353,0.1874823,107780.0,107770.0,0.87767284]
[1751643488559,0.1864823,107780.0,107770.0,0.87767284]
[1751643488862,0.5364823,107780.0,107770.0,0.87867284]
[1751643489157,0.5554823,107780.0,107770.0,0.86417217]
[1751643489356,0.5554823,107780.0,107770.0,0.87867131]
[1751643489562,0.1854823,107780.0,107770.0,0.87867131]
[1751643489856,0.5154823,107780.0,107770.0,0.87867131]
[1751643490454,0.5154823,107780.0,107770.0,0.8781746]
[1751643491854,0.1854823,107780.0,107770.0,0.8781746]
[1751643492049,0.5454823,107780.0,107770.0,0.8781746]
[1751643492255,0.1854823,107780.0,107770.0,0.8781746]
[1751643492664,0.1854823,107780.0,107770.0,0.82249917]
[1751643492856,0.34254884,107790.0,107780.0,0.1854824]
[1751643493056,0.69254884,107790.0,107780.0,0.9760175]
[1751643493458,0.69254884,107790.0,107780.0,0.61798364]
[1751643493958,0.6755874,107790.0,107780.0,0.61798364]
[1751643494160,0.69335621,107790.0,107780.0,0.61798364]
[1751643494460,1.05338906,107790.0,107780.0,0.16250124]
[1751643494660,1.05338906,107790.0,107780.0,0.24956257]
[1751643494861,1.05338906,107790.0,107780.0,0.51956257]
[1751643495062,1.08478906,107790.0,107780.0,0.51956257]
[1751643495361,1.08478906,107790.0,107780.0,0.25956257]
[1751643495762,1.08478906,107790.0,107780.0,0.50956257]
[1751643495963,1.08478906,107790.0,107780.0,0.19956257]
[1751643496165,1.08478906,107790.0,107780.0,0.47956257]
[1751643496566,1.08478906,107790.0,107780.0,0.66504497]
[1751643496864,1.08478906,107790.0,107780.0,0.38504497]
[1751643497165,1.08478906,107790.0,107780.0,0.69504497]
[1751643497364,1.08478906,107790.0,107780.0,0.45395946]
[1751643497665,1.11478906,107790.0,107780.0,0.19395946]
[1751643497865,1.14738906,107790.0,107780.0,0.19395946]
[1751643498164,1.14738906,107790.0,107780.0,0.20395946]
[1751643498367,1.14738906,107790.0,107780.0,0.4339599]
[1751643498561,1.14738906,107790.0,107780.0,0.2139599]
[1751643498861,1.14738906,107790.0,107780.0,0.1439599]
[1751643499258,1.14738906,107790.0,107780.0,0.0515599]
[1751643500170,1.50542191,107790.0,107780.0,0.0515599]
[1751643501367,1.14738906,107790.0,107780.0,0.0515599]
[1751643502164,1.14738906,107790.0,107780.0,0.1015599]
[1751643502565,1.14738906,107790.0,107780.0,0.0515599]
[1751643502765,1.14738906,107790.0,107780.0,0.03706133]
[1751643503965,1.14738906,107790.0,107780.0,0.05142637]
[1751643504166,1.50542191,107790.0,107780.0,0.05142637]
[1751643504963,0.78935621,107790.0,107780.0,0.05142637]
[1751643505162,1.50542191,107790.0,107780.0,0.05142637]
[1751643505669,1.14738906,107790.0,107780.0,0.05142637]
[1751643507370,1.14738906,107790.0,107780.0,0.03706133]
[1751643507558,1.14738906,107790.0,107780.0,0.05143122]
[1751643508964,1.50542191,107790.0,107780.0,0.05143122]
[1751643510468,1.50542191,107790.0,107780.0,0.05143522]
[1751643514373,1.50542191,107790.0,107780.0,0.01437389]
[1751643514976,1.50542191,107790.0,107780.0,0.05143522]
[1751643516479,1.14738906,107790.0,107780.0,0.05143522]
[1751643516679,0.1854823,107780.0,107770.0,0.07509738]
[1751643516872,1.86941515,107780.0,107770.0,0.01949427]
[1751643517072,1.86941515,107780.0,107770.0,0.03324876]
[1751643518880,1.86941515,107780.0,107770.0,0.03424876]
[1751643519575,1.86941515,107780.0,107770.0,0.01475449]
[1751643519880,1.87641515,107780.0,107770.0,0.01475449]
[1751643523687,1.5183823,107780.0,107770.0,0.01475449]
[1751643523881,1.87641515,107780.0,107770.0,0.01475449]
[1751643528788,1.87641515,107780.0,107770.0,0.02916192]
[1751643533388,1.87641515,107780.0,107770.0,0.06036192]
[1751643533790,1.87641515,107780.0,107770.0,0.06028089]
[1751643535089,1.87641515,107780.0,107770.0,0.06028177]
[1751643535993,1.87641515,107780.0,107770.0,0.02908177]
[1751643536299,1.87641515,107780.0,107760.0,0.11620311]
[1751643536300,2.7521954,107780.0,107740.0,0.07420004]
[1751643536585,0.54356625,107750.0,107740.0,0.15356297]
[1751643536791,1.77236625,107750.0,107740.0,0.31936293]
[1751643536992,1.4143334,107750.0,107740.0,0.31936293]
[1751643537193,1.77236625,107750.0,107740.0,0.50491353]
[1751643538093,1.77236625,107750.0,107740.0,0.31936293]
[1751643538589,1.77236625,107750.0,107740.0,0.32436293]
[1751643538789,1.4143334,107750.0,107740.0,0.32436293]
[1751643538990,1.77236625,107750.0,107740.0,0.32136293]
[1751643539189,1.77336625,107750.0,107740.0,0.32436293]
[1751643539392,1.77336625,107750.0,107740.0,0.42026293]
[1751643539790,1.48867378,107750.0,107740.0,0.42026293]
[1751643540091,1.84670663,107750.0,107740.0,0.42026293]
[1751643540284,1.84670663,107750.0,107740.0,0.42988461]
[1751643542691,1.48867378,107750.0,107740.0,0.42988461]
[1751643542895,1.84670663,107750.0,107740.0,0.42988461]
[1751643544199,1.48867378,107750.0,107740.0,0.42988461]
[1751643544396,1.84670663,107750.0,107740.0,0.42988461]
[1751643545895,1.86856321,107750.0,107740.0,0.42988461]
[1751643546694,1.86848321,107750.0,107740.0,0.61543521]
[1751643547804,1.86848321,107750.0,107740.0,0.97362186]
[1751643547805,1.86863701,107750.0,107740.0,0.97362186]
[1751643548198,1.86863701,107750.0,107740.0,1.00197362]
[1751643548699,1.86863701,107750.0,107740.0,0.45823637]
[1751643549398,1.84678043,107750.0,107740.0,0.16823637]
[1751643549704,1.87788043,107750.0,107740.0,0.16823637]
[1751643550202,1.90848043,107750.0,107740.0,0.16823637]
[1751643550702,1.90848043,107750.0,107740.0,0.07233637]
[1751643550907,1.94098043,107750.0,107740.0,0.07233637]
[1751643551499,1.90848043,107750.0,107740.0,0.07233637]
[1751643551701,1.90848043,107750.0,107740.0,0.15713637]
[1751643552005,1.93033458,107750.0,107740.0,0.44713637]
[1751643552209,1.90848043,107750.0,107740.0,0.44713637]
[1751643552406,1.90848043,107750.0,107740.0,0.44716775]
[1751643552806,1.87788043,107750.0,107740.0,0.44716775]
[1751643554004,1.77344005,107750.0,107740.0,0.63271835]
[1751643554403,1.77344005,107750.0,107740.0,0.990905]
[1751643554604,1.77344005,107750.0,107740.0,0.44716775]
[1751643554903,1.77344005,107750.0,107740.0,0.8053544]
[1751643555307,1.79529263,107750.0,107740.0,0.44716775]
[1751643555510,1.79529263,107750.0,107740.0,0.4471673]
[1751643556709,1.79529263,107750.0,107740.0,0.4271673]
[1751643556904,1.82829263,107750.0,107740.0,0.4271673]
[1751643557312,1.86079263,107750.0,107740.0,0.4271673]
[1751643557914,1.86079263,107750.0,107740.0,0.1671673]
[1751643558110,2.24997928,107750.0,107740.0,0.05274562]
[1751643558314,2.21997807,107750.0,107740.0,0.05274562]
[1751643559000,2.21997714,107750.0,107740.0,0.05274562]
[1751643559705,2.29417886,107750.0,107740.0,0.05274562]
[1751643560213,2.29417886,107750.0,107740.0,0.05074562]
[1751643561213,1.57780556,107750.0,107740.0,0.05074562]
[1751643561412,2.29417886,107750.0,107740.0,0.05074562]
[1751643561611,2.29417886,107750.0,107740.0,0.05077071]
[1751643561912,1.93607083,107750.0,107740.0,0.05077071]
[1751643562212,1.93607083,107750.0,107740.0,0.04977071]
[1751643562915,1.93607083,107750.0,107740.0,0.03540421]
[1751643566925,1.93607083,107750.0,107740.0,0.08540421]
[1751643569324,1.93607083,107750.0,107740.0,0.03540421]
[1751643570827,1.93583083,107750.0,107740.0,0.03540421]
[1751643574525,1.93583083,107750.0,107740.0,0.03440421]
[1751643579726,1.93583083,107750.0,107740.0,0.03451593]
[1751643581828,2.2942113,107750.0,107740.0,0.03451593]
[1751643585637,2.2942113,107750.0,107740.0,0.03452116]
[1751643585939,2.2942113,107750.0,107740.0,1e-08]
[1751643585940,2.65253417,107750.0,107740.0,1e-08]
[1751643586126,2.2942113,107750.0,107740.0,1e-08]
[1751643589236,2.65253417,107750.0,107740.0,1e-08]
[1751643591340,2.67021283,107750.0,107740.0,1e-08]
[1751643591739,1.95363537,107750.0,107740.0,1e-08]
[1751643594143,0.1855677,107730.0,107720.0,0.16742843]
[1751643594342,1.76392929,107730.0,107720.0,0.11184367]
[1751643594845,1.76392929,107730.0,107720.0,0.0925]
[1751643595043,1.79562929,107730.0,107720.0,0.0925]
[1751643595343,1.79562929,107730.0,107720.0,0.1425]
[1751643595642,1.79662929,107730.0,107720.0,0.1465]
[1751643596141,0.54841814,107730.0,107720.0,0.0965]
[1751643596340,1.40745814,107730.0,107720.0,0.98906091]
[1751643596945,1.40745814,107730.0,107720.0,0.93347615]
[1751643597144,1.40745814,107730.0,107720.0,0.943427]
[1751643597843,0.54941814,107730.0,107720.0,0.99901176]
[1751643598043,1.3856077,107730.0,107720.0,0.99901176]
[1751643600148,1.74399885,107730.0,107720.0,0.45503561]
[1751643600347,1.74399885,107730.0,107720.0,0.64062061]
[1751643600549,1.74399885,107730.0,107720.0,0.45503561]
[1751643601044,2.12425549,107730.0,107720.0,0.45886233]
[1751643601347,2.1415926,107730.0,107720.0,0.16886233]
[1751643601543,2.2355926,107730.0,107720.0,0.29886233]
[1751643601743,2.2355926,107730.0,107720.0,0.45886233]
[1751643602445,2.2355926,107730.0,107720.0,0.16886233]
[1751643602648,2.2355926,107730.0,107720.0,0.02077757]
[1751643602838,2.2755926,107730.0,107720.0,0.00419663]
[1751643604152,2.28523815,107730.0,107720.0,0.00419663]
[1751643605143,2.28523815,107730.0,107720.0,0.00519663]
[1751643607252,2.26790104,107730.0,107720.0,0.00519663]
[1751643607751,2.26690104,107730.0,107720.0,0.00519663]
[1751643608051,2.28480994,107730.0,107720.0,0.00619663]
[1751643608651,2.28967611,107730.0,107720.0,0.00619663]
[1751643609053,2.28967611,107730.0,107720.0,0.00519663]
[1751643609352,2.29467611,107730.0,107720.0,0.00619663]
[1751643610855,2.27676721,107730.0,107720.0,0.00619663]
[1751643611552,2.28472683,107730.0,107720.0,0.00619663]
[1751643614257,2.29466608,107730.0,107720.0,0.00619663]
[1751643615657,1.43662608,107730.0,107720.0,3e-08]
[1751643615956,0.41286549,107730.0,107720.0,0.18558503]
[1751643616152,1.27066549,107730.0,107720.0,0.96277618]
[1751643616352,1.45623329,107730.0,107720.0,0.96277618]
[1751643616558,1.81462444,107730.0,107720.0,0.41880003]
[1751643616956,1.79275895,107730.0,107720.0,0.41880003]
[1751643617858,0.05551464,107770.0,107720.0,1.779661]
[1751643617859,0.01771696,107770.0,107720.0,1.779661]
[1751643618058,0.01771696,107770.0,107760.0,0.54390725]
[1751643618247,0.13945316,107770.0,107760.0,0.82358246]
[1751643618453,0.12210798,107770.0,107760.0,0.92058246]
[1751643618654,0.30760688,107770.0,107760.0,0.92058246]
[1751643618854,0.05751464,107800.0,107790.0,0.1854645]
[1751643619051,0.04299465,107810.0,107800.0,0.1854473]
[1751643619248,0.22842475,107810.0,107800.0,1.04935845]
[1751643619654,0.1854301,107810.0,107800.0,1.04935845]
[1751643620060,0.16871322,107840.0,107830.0,0.1853957]
[1751643620357,0.1873911,107840.0,107830.0,0.64839115]
[1751643620553,0.1873911,107840.0,107830.0,1.01925885]
[1751643620861,0.092679,107860.0,107840.0,0.1390275]
[1751643621061,0.7092633,107860.0,107850.0,0.35839115]
[1751643621256,0.7092633,107860.0,107850.0,0.1390229]
[1751643621451,0.7092633,107860.0,107850.0,0.49741405]
[1751643621651,1.06765445,107860.0,107850.0,0.0190229]
[1751643621860,1.15620465,107860.0,107850.0,0.0060229]
[1751643622254,2.25284465,107860.0,107850.0,0.0060229]
[1751643622563,0.278007,107870.0,107860.0,0.1853441]
[1751643622862,0.722807,107870.0,107860.0,0.07]
[1751643623168,0.722807,107870.0,107850.0,0.66564125]
[1751643623169,0.1853441,107860.0,107850.0,0.68564935]
[1751643623463,0.1853441,107860.0,107850.0,0.0481229]
[1751643623464,0.1903441,107860.0,107850.0,0.0481229]
[1751643623664,0.94728545,107860.0,107850.0,0.0080229]
[1751643623859,1.01028545,107860.0,107850.0,0.01786658]
[1751643624060,1.01028545,107860.0,107850.0,0.2533841]
[1751643624261,0.5633441,107860.0,107850.0,0.2533841]
[1751643624654,0.5633441,107860.0,107850.0,0.0680229]
[1751643624864,1.01028545,107860.0,107850.0,0.0080229]
[1751643625665,1.00528545,107860.0,107850.0,0.0070229]
[1751643625868,1.00728545,107860.0,107850.0,0.0070229]
[1751643626768,1.03898545,107860.0,107850.0,0.0060229]
[1751643627666,1.04098545,107860.0,107850.0,0.0060229]
[1751643628268,0.1853784,107840.0,107830.0,0.08276179]
[1751643630473,1.4786984,107840.0,107830.0,0.011]
[1751643631471,1.4786984,107840.0,107830.0,0.02064851]
[1751643631769,1.4785784,107840.0,107830.0,0.48604411]
[1751643631970,0.6209784,107840.0,107830.0,0.48604411]
[1751643632172,1.4788584,107840.0,107830.0,0.93298546]
[1751643632374,0.6209784,107840.0,107830.0,0.93298546]
[1751643632670,0.6209784,107840.0,107830.0,0.20604421]
[1751643632867,0.6209784,107840.0,107830.0,0.19604421]
[1751643633072,0.6209784,107840.0,107830.0,0.51604421]
[1751643633675,0.6209784,107840.0,107830.0,0.33064851]
[1751643633974,0.6209784,107840.0,107830.0,0.51604421]
[1751643634874,0.6209784,107840.0,107830.0,0.33064851]
[1751643635669,0.6209784,107840.0,107830.0,0.02064851]
[1751643636173,0.6209784,107840.0,107830.0,0.47604451]
[1751643637280,0.6209784,107840.0,107830.0,0.29064851]
[1751643637581,0.6209784,107840.0,107830.0,0.20604451]
[1751643637877,0.6209784,107840.0,107830.0,0.28119093]
[1751643638579,0.6209784,107840.0,107830.0,0.58119093]
[1751643639567,0.6209784,107840.0,107830.0,0.27119093]
[1751643639766,0.6209784,107840.0,107830.0,0.56119093]
[1751643643073,0.6209784,107840.0,107830.0,0.47119093]
[1751643646478,0.6209784,107840.0,107830.0,0.28579493]
[1751643646780,0.6209784,107840.0,107830.0,0.26154242]
[1751643646781,0.97853651,107840.0,107830.0,0.26154242]
[1751643646981,0.97553651,107840.0,107830.0,0.26154242]
[1751643647278,0.97553651,107840.0,107830.0,0.2898938]
[1751643648888,0.97553651,107840.0,107830.0,0.1044978]
[1751643649270,0.62292923,107840.0,107830.0,0.11406666]
[1751643649476,0.185396,107830.0,107820.0,0.03695655]
[1751643649776,0.1854131,107820.0,107810.0,0.25029561]
[1751643649976,0.88297121,107820.0,107810.0,0.25029561]
[1751643650182,0.88297121,107820.0,107810.0,0.06486531]
[1751643650680,0.88297121,107820.0,107810.0,0.25029561]
[1751643650876,0.88297121,107820.0,107810.0,0.32403603]
[1751643650877,0.88097121,107820.0,107810.0,0.32403603]
[1751643651280,0.88097121,107820.0,107810.0,0.37403603]
[1751643651683,0.88097121,107820.0,107810.0,0.61403603]
[1751643651877,0.5234131,107820.0,107810.0,0.61403603]
[1751643652074,0.9705517,107820.0,107810.0,0.32403603]
[1751643652278,0.9705517,107820.0,107810.0,0.13860573]
[1751643652677,1.0334517,107820.0,107810.0,0.32403613]
[1751643652879,0.6169131,107820.0,107810.0,0.38403613]
[1751643653081,0.6209131,107820.0,107810.0,0.32503613]
[1751643653276,0.6209131,107820.0,107810.0,0.52986597]
[1751643653481,0.6209131,107820.0,107810.0,0.40443557]
[1751643653677,0.6209131,107820.0,107810.0,0.14443557]
[1751643653988,1.0680517,107820.0,107810.0,0.08443557]
[1751643655286,1.08556091,107820.0,107810.0,0.08443557]
[1751643655584,1.08756091,107820.0,107810.0,0.08443557]
[1751643656183,1.08756091,107820.0,107810.0,0.001]
[1751643656384,1.08556091,107820.0,107810.0,0.001]
[1751643656687,0.1854303,107810.0,107800.0,0.20505518]
[1751643656986,1.0483689,107810.0,107800.0,0.52505518]
[1751643657582,0.2512303,107810.0,107800.0,0.58022534]
[1751643657779,0.2552303,107810.0,107800.0,0.61342534]
[1751643658584,0.0698,107810.0,107800.0,0.61342534]
[1751643658787,0.28518081,107820.0,107810.0,0.1854303]
[1751643659084,0.31258081,107820.0,107810.0,0.97742444]
[1751643659284,0.31258081,107820.0,107810.0,0.56228584]
[1751643659583,0.31258081,107820.0,107810.0,0.63741244]
[1751643659985,0.31758081,107820.0,107810.0,0.63941244]
[1751643661485,0.3000716,107820.0,107810.0,0.63941244]
[1751643661678,0.3319716,107820.0,107810.0,0.63941244]
[1751643662875,0.2856175,107820.0,107810.0,0.63941244]
[1751643663081,0.2208175,107820.0,107810.0,1.08655104]
[1751643663383,0.2208175,107820.0,107810.0,1.11435104]
[1751643663685,0.0354,107820.0,107810.0,1.11435104]
[1751643663989,0.28765272,107840.0,107830.0,0.1853959]
[1751643663990,0.28043192,107840.0,107830.0,0.1853959]
[1751643664186,0.34413192,107840.0,107830.0,0.94799714]
[1751643664685,0.34413192,107840.0,107830.0,0.50085854]
[1751643665284,0.66413192,107840.0,107830.0,0.50085854]
[1751643665682,0.72413192,107840.0,107830.0,0.50085854]
[1751643666281,0.34813192,107840.0,107830.0,0.50185854]
[1751643666486,0.70813192,107840.0,107830.0,0.50185854]
[1751643666683,0.70813192,107840.0,107830.0,0.4463959]
[1751643667892,0.34813192,107840.0,107830.0,0.4463959]
[1751643668078,0.099,107840.0,107830.0,0.4463959]
[1751643668282,0.0358,107840.0,107830.0,0.8935345]
[1751643668493,0.1853622,107850.0,107840.0,0.1853787]
[1751643668687,0.1853622,107850.0,107840.0,0.97977113]
[1751643668888,0.2169622,107850.0,107840.0,0.97977113]
[1751643669083,0.0651,107860.0,107850.0,0.1853615]
[1751643669389,0.249934,107870.0,107860.0,0.1853444]
[1751643669693,0.249934,107870.0,107860.0,0.50079823]
[1751643670088,0.249934,107870.0,107860.0,0.4453444]
[1751643671096,0.253934,107870.0,107860.0,0.4463444]
[1751643671891,0.258934,107870.0,107860.0,0.4473444]
[1751643672396,0.258934,107870.0,107860.0,0.456862]
[1751643673398,1.0260726,107870.0,107860.0,0.0115176]
[1751643674403,1.0260726,107870.0,107860.0,0.1968619]
[1751643674592,1.0260726,107870.0,107860.0,0.0115176]
[1751643674794,0.298934,107870.0,107860.0,0.0115176]
[1751643674993,1.0860726,107870.0,107860.0,0.002]
[1751643676399,1.9429526,107870.0,107860.0,0.002]
[1751643676794,1.9429526,107870.0,107850.0,0.01913166]
[1751643676795,0.1853443,107860.0,107850.0,0.01913166]
[1751643677000,1.0670829,107860.0,107850.0,0.01913166]
[1751643678002,1.0710829,107860.0,107850.0,0.01913166]
[1751643680008,1.1035829,107860.0,107850.0,0.01913166]
[1751643687706,1.1131537,107860.0,107850.0,0.01913166]
[1751643687910,1.13043017,107860.0,107850.0,0.01913166]
[1751643689312,1.31586217,107860.0,107850.0,0.00613166]
[1751643689614,0.1853787,107840.0,107830.0,0.03687838]
[1751643689915,1.7991173,107840.0,107830.0,0.03687838]
[1751643690108,1.8621173,107840.0,107830.0,0.03687838]
[1751643690301,1.8930173,107840.0,107830.0,0.03687838]
[1751643690908,1.8940173,107840.0,107830.0,0.03687838]
[1751643691709,1.8930173,107840.0,107830.0,0.03687838]
[1751643691911,1.8960173,107840.0,107830.0,0.03687838]
[1751643693712,0.1853959,107830.0,107820.0,0.06553246]
[1751643693917,1.0554345,107830.0,107820.0,0.12553246]
[1751643694513,1.0554345,107830.0,107820.0,0.05545383]
[1751643694716,1.0554345,107830.0,107820.0,0.09243075]
[1751643694913,1.0554345,107830.0,107820.0,0.03697692]
[1751643695113,1.0564345,107830.0,107820.0,0.03697692]
[1751643695722,0.9564345,107830.0,107820.0,0.03697692]
[1751643696623,0.9564345,107830.0,107820.0,0.03897692]
[1751643696624,0.9584345,107830.0,107820.0,0.03897692]
[1751643697018,1.1973545,107830.0,107820.0,0.002]
[1751643699046,0.7502159,107830.0,107820.0,0.002]
[1751643699226,1.1973545,107830.0,107820.0,0.002]
[1751643703832,1.1079958,107830.0,107820.0,0.002]
[1751643705731,1.4657757,107830.0,107820.0,0.002]
[1751643706932,1.1079958,107830.0,107820.0,0.002]
[1751643707631,0.1854303,107810.0,107800.0,0.03697692]
[1751643707834,1.74740017,107810.0,107800.0,0.03697692]
[1751643708133,0.1854475,107800.0,107790.0,0.14033554]
[1751643708331,0.9595274,107800.0,107790.0,0.14033554]
[1751643708734,0.9535274,107800.0,107790.0,0.14033554]
[1751643708927,0.5957475,107800.0,107790.0,0.14033554]
[1751643709127,0.9535274,107800.0,107790.0,0.14033554]
[1751643709328,0.9535274,107800.0,107790.0,0.20033554]
[1751643709529,0.9545274,107800.0,107790.0,0.20733554]
[1751643709729,0.9545274,107800.0,107790.0,0.14733554]
[1751643709935,0.9545274,107800.0,107790.0,0.065416]
[1751643710237,0.9545274,107800.0,107790.0,0.02843908]
[1751643711139,0.9545274,107800.0,107790.0,0.03043908]
[1751643713336,0.5967475,107800.0,107790.0,0.03043908]
[1751643713536,0.9545274,107800.0,107790.0,0.03043908]
[1751643715136,0.9545274,107800.0,107790.0,0.067416]
[1751643715734,1.8112874,107800.0,107790.0,0.067416]
[1751643716532,1.8112874,107800.0,107790.0,0.03043908]
[1751643717028,2.1690673,107800.0,107790.0,0.03043908]
[1751643717730,1.8112874,107800.0,107790.0,0.03043908]
[1751643720534,2.1690673,107800.0,107790.0,0.03043908]
[1751643725145,1.8112874,107800.0,107790.0,0.03043908]
[1751643726044,2.1690673,107800.0,107790.0,0.03043908]
[1751643727041,1.8112874,107800.0,107790.0,0.03043908]
[1751643728540,2.1690673,107800.0,107790.0,0.03043908]
[1751643735846,1.4535075,107800.0,107790.0,0.03043908]
[1751643736047,0.9545274,107800.0,107790.0,0.03043908]
[1751643736253,1.8112074,107800.0,107790.0,0.03043908]
[1751643736947,1.8111674,107800.0,107790.0,0.09043908]
[1751643737148,1.8111674,107800.0,107790.0,0.06263908]
[1751643737852,1.8111674,107800.0,107790.0,0.099616]
[1751643738447,1.7453674,107800.0,107790.0,0.159616]
[1751643738650,1.7453674,107800.0,107790.0,0.127416]
[1751643738854,1.7453674,107800.0,107790.0,0.387416]
[1751643739854,1.3875875,107800.0,107790.0,0.387416]
[1751643740061,0.5004475,107800.0,107790.0,0.9306606]
[1751643740243,0.321,107800.0,107790.0,0.94913751]
[1751643740449,0.5064474,107800.0,107790.0,0.94913751]
[1751643740849,0.5064474,107800.0,107790.0,0.89368368]
[1751643741146,0.5064474,107800.0,107790.0,1.32921967]
[1751643741352,0.2754475,107800.0,107790.0,1.54243603]
[1751643742852,0.1854475,107800.0,107790.0,0.88829013]
[1751643743053,0.9232274,107800.0,107790.0,0.14595745]
[1751643743356,1.7797474,107800.0,107790.0,0.08595429]
[1751643743554,1.8433474,107800.0,107790.0,0.08595429]
[1751643744155,1.8433474,107800.0,107790.0,0.12296695]
[1751643744555,1.8433474,107800.0,107790.0,0.06745174]
[1751643745156,1.8433474,107800.0,107790.0,0.11745174]
[1751643745558,1.8433474,107800.0,107790.0,0.12745174]
[1751643748459,1.4855675,107800.0,107790.0,0.12745174]
[1751643748662,1.8433474,107800.0,107790.0,0.06745174]
[1751643750775,1.8433474,107800.0,107790.0,0.16745174]
[1751643756081,1.8433474,107800.0,107790.0,0.14786803]
[1751643756381,2.2011273,107800.0,107790.0,0.14786803]
[1751643756678,2.0821874,107800.0,107790.0,0.11085537]
[1751643757679,2.0821874,107800.0,107790.0,0.10885537]
[1751643757881,2.0831874,107800.0,107790.0,0.10885537]
[1751643758179,2.4409673,107800.0,107790.0,0.10885537]
[1751643758382,2.4419673,107800.0,107790.0,0.10285537]
[1751643758580,2.0841874,107800.0,107790.0,0.10285537]
[1751643758783,2.4419673,107800.0,107790.0,0.10285537]
[1751643758979,2.0841874,107800.0,107790.0,0.10285537]
[1751643759376,2.4419673,107800.0,107790.0,0.11616819]
[1751643759979,2.45167394,107800.0,107790.0,0.11616819]
[1751643762680,3.95167394,107800.0,107790.0,0.11616819]
[1751643764784,1.73583414,107800.0,107790.0,0.11616819]
[1751643765084,2.09361404,107800.0,107790.0,0.11616819]
[1751643765986,2.09361404,107800.0,107790.0,0.1162585]
[1751643766485,2.45139394,107800.0,107790.0,0.1162585]
[1751643767078,2.45139394,107800.0,107790.0,0.0663585]
[1751643767280,2.63692994,107800.0,107790.0,0.0360988]
[1751643770088,3.91984994,107800.0,107790.0,0.0360988]
[1751643771790,2.28145404,107800.0,107790.0,0.0360988]
[1751643771985,2.23145404,107800.0,107790.0,0.0360988]
[1751643772182,3.32657404,107800.0,107790.0,0.0360988]
[1751643773589,3.32657404,107800.0,107790.0,0.02169567]
[1751643776894,3.68435394,107800.0,107790.0,0.02169567]
[1751643779792,3.32657404,107800.0,107790.0,0.02169567]
[1751643780188,3.68435394,107800.0,107790.0,0.02169567]
[1751643781788,3.68435394,107800.0,107790.0,7e-08]
[1751643785394,3.73895847,107800.0,107790.0,7e-08]
[1751643786096,0.1854832,107780.0,107770.0,0.0311]
[1751643786396,1.73738893,107780.0,107770.0,0.0311]
[1751643786597,1.80228893,107780.0,107770.0,0.0311]
[1751643786798,1.87668792,107780.0,107770.0,0.0311]
[1751643787495,1.87768792,107780.0,107770.0,0.003]
[1751643788994,1.87768792,107780.0,107770.0,0.001]
[1751643789200,1.87768792,107780.0,107770.0,0.002]
[1751643790200,1.87768792,107780.0,107770.0,0.0157297]
[1751643790605,1.87768792,107780.0,107770.0,0.0301022]
[1751643791305,1.87768792,107780.0,107770.0,0.04945236]
[1751643791907,1.87768792,107780.0,107770.0,0.04945085]
[1751643792914,1.51990802,107780.0,107770.0,0.04945085]
[1751643793209,1.87768792,107780.0,107770.0,0.04945085]
[1751643793904,2.23848792,107780.0,107770.0,0.04945085]
[1751643794208,2.23848792,107780.0,107770.0,0.03572115]
[1751643795411,2.23848792,107780.0,107770.0,0.06812115]
[1751643797913,2.23848792,107780.0,107770.0,0.06822461]
[1751643799812,2.23848792,107780.0,107770.0,0.03582461]
[1751643800908,2.23848792,107780.0,107770.0,0.03582336]
[1751643801108,2.23848792,107780.0,107770.0,0.0164732]
[1751643805607,1.38232792,107780.0,107770.0,0.0164732]
[1751643805912,2.47712792,107780.0,107770.0,0.0164732]
[1751643806115,2.47712792,107780.0,107770.0,0.0492732]
[1751643806612,1.35022792,107780.0,107770.0,0.06853108]
[1751643806914,2.44502792,107780.0,107770.0,0.06853108]
[1751643807213,2.44502792,107780.0,107770.0,0.10033108]
[1751643807405,1.55622792,107780.0,107770.0,0.10033108]
[1751643807612,0.95662792,107780.0,107770.0,0.55363108]
[1751643807813,0.59884802,107780.0,107770.0,0.78363108]
[1751643808007,0.52444903,107780.0,107770.0,1.17842364]
[1751643808315,1.38044903,107780.0,107770.0,1.17842364]
[1751643808614,1.38044903,107780.0,107770.0,0.82064374]
[1751643809913,1.38044903,107780.0,107770.0,0.54064374]
[1751643810114,1.38040903,107780.0,107770.0,0.83064374]
[1751643811513,1.73818893,107780.0,107770.0,0.83064374]
[1751643812811,1.73818893,107780.0,107770.0,0.83067062]
[1751643814518,1.38040903,107780.0,107770.0,0.83067062]
[1751643814717,1.73818893,107780.0,107770.0,0.83067062]
[1751643816721,1.38040903,107780.0,107770.0,0.83067062]
[1751643816921,1.73818893,107780.0,107770.0,0.83067062]
[1751643821819,1.73818893,107780.0,107770.0,0.81617054]
[1751643822222,1.73818893,107780.0,107770.0,0.83049242]
[1751643822423,1.73818893,107780.0,107770.0,0.54049242]
[1751643822723,1.38040903,107780.0,107770.0,0.81049242]
[1751643822924,1.73818893,107780.0,107770.0,0.81049242]
[1751643823225,1.76888893,107780.0,107770.0,0.81049242]
[1751643823426,1.80198893,107780.0,107770.0,0.81049242]
[1751643823627,1.80198893,107780.0,107770.0,0.50799242]